[Event "Titled Tuesday Blitz September 20 Late 2022"]
[White "Lin, Dachey"]
[Black "Cukrowski, Filip"]
[WhiteFideId "2029650"]
[BlackFideId "1171097"]
[WhiteElo "2313"]
[BlackElo "2093"]
[Result "1-0"]
[Round "03"]
[TimeControl "180+1"]
[Date "2022.09.20"]
[WhiteClock "0:00:21"]
[BlackClock "0:00:42"]

1. g4 {[%clk 0:02:42]}  d6 {[%clk 0:02:59]} 2. Bg2 {[%clk 0:02:41]}  Nc6 {[%clk 0:02:58]} 3. g5 {[%clk 0:02:41]}  e5 {[%clk 0:02:58]} 4. d3 {[%clk 0:02:41]}  Be7 {[%clk 0:02:57]} 5. h4 {[%clk 0:02:41]}  Be6 {[%clk 0:02:57]} 6. c4 {[%clk 0:02:41]}  Qd7 {[%clk 0:02:57]} 7. Nc3 {[%clk 0:02:41]}  h6 {[%clk 0:02:54]} 8. Nf3 {[%clk 0:02:40]}  hxg5 {[%clk 0:02:54]} 9. Nxg5 {[%clk 0:02:36]}  Nf6 {[%clk 0:02:52]} 10. Nxe6 {[%clk 0:02:34]}  fxe6 {[%clk 0:02:52]} 11. Bg5 {[%clk 0:02:32]}  Nd8 {[%clk 0:02:38]} 12. Qd2 {[%clk 0:02:20]}  Nf7 {[%clk 0:02:35]} 13. Bxb7 {[%clk 0:02:17]}  Rb8 {[%clk 0:02:32]} 14. Bf3 {[%clk 0:02:17]}  Nxg5 {[%clk 0:02:28]} 15. hxg5 {[%clk 0:02:15]}  Rxh1+ {[%clk 0:02:27]} 16. Bxh1 {[%clk 0:02:16]}  Nh7 {[%clk 0:02:27]} 17. g6 {[%clk 0:02:07]}  Nf8 {[%clk 0:02:20]} 18. O-O-O {[%clk 0:01:58]}  c6 {[%clk 0:02:16]} 19. Rg1 {[%clk 0:01:44]}  d5 {[%clk 0:02:15]} 20. Qe3 {[%clk 0:01:31]}  Bf6 {[%clk 0:01:34]} 21. Qc5 {[%clk 0:01:16]}  Be7 {[%clk 0:01:32]} 22. Qe3 {[%clk 0:01:10]}  Bf6 {[%clk 0:01:32]} 23. Qd2 {[%clk 0:01:07]}  Qd6 {[%clk 0:01:27]} 24. Bf3 {[%clk 0:01:05]}  Nd7 {[%clk 0:01:26]} 25. Rh1 {[%clk 0:01:05]}  Ke7 {[%clk 0:01:26]} 26. Kb1 {[%clk 0:00:56]}  e4 {[%clk 0:01:19]} 27. dxe4 {[%clk 0:00:56]}  dxe4 {[%clk 0:01:19]} 28. Qxd6+ {[%clk 0:00:55]}  Kxd6 {[%clk 0:01:20]} 29. Nxe4+ {[%clk 0:00:56]}  Kc7 {[%clk 0:01:15]} 30. Nxf6 {[%clk 0:00:55]}  Nxf6 {[%clk 0:01:16]} 31. Kc2 {[%clk 0:00:54]}  e5 {[%clk 0:01:15]} 32. Rh4 {[%clk 0:00:53]}  Kd6 {[%clk 0:01:14]} 33. Be4 {[%clk 0:00:47]}  c5 {[%clk 0:01:13]} 34. Bf5 {[%clk 0:00:47]}  Ke7 {[%clk 0:01:09]} 35. Rh3 {[%clk 0:00:43]}  Rb4 {[%clk 0:01:04]} 36. Rc3 {[%clk 0:00:37]}  Ne8 {[%clk 0:01:03]} 37. a3 {[%clk 0:00:37]}  Rb7 {[%clk 0:01:03]} 38. Be4 {[%clk 0:00:34]}  Rc7 {[%clk 0:01:02]} 39. Rb3 {[%clk 0:00:33]}  Nd6 {[%clk 0:01:01]} 40. Bd5 {[%clk 0:00:33]}  Kf6 {[%clk 0:01:02]} 41. Rb8 {[%clk 0:00:28]}  Nf5 {[%clk 0:00:53]} 42. Rf8+ {[%clk 0:00:27]}  Kg5 {[%clk 0:00:53]} 43. e3 {[%clk 0:00:26]}  Nh6 {[%clk 0:00:49]} 44. Be4 {[%clk 0:00:23]}  Kh5 {[%clk 0:00:48]} 45. Re8 {[%clk 0:00:22]}  Ng4 {[%clk 0:00:48]} 46. Bf3 {[%clk 0:00:22]}  Kg5 {[%clk 0:00:46]} 47. Bxg4 {[%clk 0:00:22]}  Kxg4 {[%clk 0:00:47]} 48. Rxe5 {[%clk 0:00:23]}  Rc6 {[%clk 0:00:47]} 49. f4 {[%clk 0:00:22]}  Kf3 {[%clk 0:00:45]} 50. Kd3 {[%clk 0:00:22]}  Rd6+ {[%clk 0:00:44]} 51. Rd5 {[%clk 0:00:22]}  Rxg6 {[%clk 0:00:43]} 52. Rxc5 {[%clk 0:00:22]}  Re6 {[%clk 0:00:43]} 53. Re5 {[%clk 0:00:22]}  Rd6+ {[%clk 0:00:44]} 54. Kc3 {[%clk 0:00:22]}  a6 {[%clk 0:00:43]} 55. c5 {[%clk 0:00:22]}  Rd1 {[%clk 0:00:42]} 56. b4 {[%clk 0:00:21]}  Rc1+ {[%clk 0:00:42]} 57. Kd4 {[%clk 0:00:21]}  Ra1 {[%clk 0:00:42]} 58. c6 {[%clk 0:00:21]} 1-0


[Site "https://www.chess.com"]

[Event "Titled Tuesday Blitz September 20 Late 2022"]
[White "McCoy, Owen"]
[Black "Safarli, Eltaj"]
[WhiteFideId "30924502"]
[BlackFideId "13402129"]
[WhiteElo "2635"]
[BlackElo "2634"]
[Result "0-1"]
[Round "03"]
[TimeControl "180+1"]
[Date "2022.09.20"]
[WhiteClock "0:00:04"]
[BlackClock "0:01:44"]

1. Nf3 {[%clk 0:02:59]}  Nf6 {[%clk 0:02:59]} 2. g3 {[%clk 0:02:59]}  g6 {[%clk 0:03:00]} 3. Bg2 {[%clk 0:03:00]}  Bg7 {[%clk 0:03:00]} 4. O-O {[%clk 0:03:01]}  O-O {[%clk 0:03:01]} 5. d4 {[%clk 0:03:00]}  d5 {[%clk 0:03:01]} 6. c4 {[%clk 0:03:01]}  c6 {[%clk 0:03:01]} 7. Qa4 {[%clk 0:02:56]}  Nfd7 {[%clk 0:02:48]} 8. cxd5 {[%clk 0:01:55]}  Nb6 {[%clk 0:02:48]} 9. Qb3 {[%clk 0:01:23]}  cxd5 {[%clk 0:02:49]} 10. Ne5 {[%clk 0:01:15]}  Nc6 {[%clk 0:02:47]} 11. Nxc6 {[%clk 0:01:14]}  bxc6 {[%clk 0:02:48]} 12. e3 {[%clk 0:01:02]}  Bf5 {[%clk 0:02:48]} 13. Nc3 {[%clk 0:00:54]}  e5 {[%clk 0:02:48]} 14. dxe5 {[%clk 0:00:50]}  Bxe5 {[%clk 0:02:49]} 15. e4 {[%clk 0:00:33]}  dxe4 {[%clk 0:02:38]} 16. Bh6 {[%clk 0:00:27]}  Re8 {[%clk 0:02:35]} 17. Nxe4 {[%clk 0:00:26]}  Rb8 {[%clk 0:02:30]} 18. Rad1 {[%clk 0:00:20]}  Nd5 {[%clk 0:02:13]} 19. Qa4 {[%clk 0:00:18]}  Qb6 {[%clk 0:02:13]} 20. Rfe1 {[%clk 0:00:13]}  Qb4 {[%clk 0:02:02]} 21. Qxc6 {[%clk 0:00:11]}  Be6 {[%clk 0:01:51]} 22. Rxd5 {[%clk 0:00:07]}  Qxe1+ {[%clk 0:01:46]} 23. Bf1 {[%clk 0:00:06]}  Qxe4 {[%clk 0:01:45]} 24. Rc5 {[%clk 0:00:03]}  Qxc6 {[%clk 0:01:44]} 25. Rxc6 {[%clk 0:00:04]}  Rxb2 {[%clk 0:01:44]} 26. Ra6 {[%clk 0:00:03]}  Bd4 {[%clk 0:01:44]} 27. Be3 {[%clk 0:00:03]}  Bxe3 {[%clk 0:01:44]} 28. fxe3 {[%clk 0:00:04]}  Rxa2 {[%clk 0:01:44]} 0-1


[Site "https://www.chess.com"]

[Event "Titled Tuesday Blitz September 20 Late 2022"]
[White "Panarin, Mikhail"]
[Black "Naroditsky, Daniel"]
[WhiteFideId "4153251"]
[BlackFideId "2026961"]
[WhiteElo "2495"]
[BlackElo "2628"]
[Result "1-0"]
[Round "03"]
[TimeControl "180+1"]
[Date "2022.09.20"]
[WhiteClock "0:00:04"]
[BlackClock "0:00:04"]

1. e4 {[%clk 0:03:00]}  e5 {[%clk 0:02:52]} 2. Nf3 {[%clk 0:03:00]}  Nc6 {[%clk 0:02:52]} 3. Bb5 {[%clk 0:03:00]}  f5 {[%clk 0:02:48]} 4. Nc3 {[%clk 0:03:00]}  fxe4 {[%clk 0:02:48]} 5. Nxe4 {[%clk 0:03:01]}  Nf6 {[%clk 0:02:49]} 6. Nxf6+ {[%clk 0:03:01]}  Qxf6 {[%clk 0:02:49]} 7. Qe2 {[%clk 0:02:52]}  Be7 {[%clk 0:02:43]} 8. Bxc6 {[%clk 0:02:50]}  bxc6 {[%clk 0:02:44]} 9. d4 {[%clk 0:02:50]}  exd4 {[%clk 0:01:26]} 10. Bg5 {[%clk 0:02:49]}  Qf7 {[%clk 0:01:24]} 11. O-O-O {[%clk 0:02:26]}  Qe6 {[%clk 0:01:12]} 12. Qxe6 {[%clk 0:02:24]}  dxe6 {[%clk 0:01:07]} 13. Bxe7 {[%clk 0:02:23]}  Kxe7 {[%clk 0:01:08]} 14. Nxd4 {[%clk 0:02:14]}  c5 {[%clk 0:01:04]} 15. Nb5 {[%clk 0:01:20]}  a6 {[%clk 0:00:55]} 16. Nc3 {[%clk 0:01:14]}  Bb7 {[%clk 0:00:53]} 17. f3 {[%clk 0:01:14]}  Bc6 {[%clk 0:00:50]} 18. Rhe1 {[%clk 0:01:14]}  Rad8 {[%clk 0:00:50]} 19. Rxd8 {[%clk 0:01:02]}  Rxd8 {[%clk 0:00:50]} 20. Re5 {[%clk 0:01:01]}  Kd6 {[%clk 0:00:48]} 21. Rg5 {[%clk 0:01:01]}  g6 {[%clk 0:00:48]} 22. Kd2 {[%clk 0:00:55]}  Rf8 {[%clk 0:00:44]} 23. Ke3 {[%clk 0:00:53]}  e5 {[%clk 0:00:37]} 24. Rg4 {[%clk 0:00:41]}  Rb8 {[%clk 0:00:34]} 25. b3 {[%clk 0:00:40]}  Rb4 {[%clk 0:00:27]} 26. Ne4+ {[%clk 0:00:36]}  Bxe4 {[%clk 0:00:27]} 27. Rxe4 {[%clk 0:00:37]}  Rd4 {[%clk 0:00:19]} 28. c3 {[%clk 0:00:37]}  Rd1 {[%clk 0:00:19]} 29. Ra4 {[%clk 0:00:37]}  Rg1 {[%clk 0:00:17]} 30. Rxa6+ {[%clk 0:00:37]}  c6 {[%clk 0:00:18]} 31. Kf2 {[%clk 0:00:37]}  Rc1 {[%clk 0:00:19]} 32. c4 {[%clk 0:00:37]}  h5 {[%clk 0:00:19]} 33. h4 {[%clk 0:00:37]}  Rc2+ {[%clk 0:00:18]} 34. Kg3 {[%clk 0:00:37]}  Rc3 {[%clk 0:00:16]} 35. Ra8 {[%clk 0:00:35]}  e4 {[%clk 0:00:15]} 36. Kf4 {[%clk 0:00:26]}  e3 {[%clk 0:00:12]} 37. Re8 {[%clk 0:00:25]}  Rc2 {[%clk 0:00:13]} 38. g3 {[%clk 0:00:22]}  e2 {[%clk 0:00:13]} 39. a4 {[%clk 0:00:20]}  Rb2 {[%clk 0:00:09]} 40. a5 {[%clk 0:00:16]}  Kd7 {[%clk 0:00:02]} 41. Re4 {[%clk 0:00:14]}  Kc7 {[%clk 0:00:02]} 42. g4 {[%clk 0:00:08]}  Kb7 {[%clk 0:00:01]} 43. gxh5 {[%clk 0:00:08]}  gxh5 {[%clk 0:00:02]} 44. Kg5 {[%clk 0:00:08]}  Ka6 {[%clk 0:00:02]} 45. f4 {[%clk 0:00:07]}  Kxa5 {[%clk 0:00:01]} 46. f5 {[%clk 0:00:08]}  Kb4 {[%clk 0:00:01]} 47. Re3 {[%clk 0:00:08]}  Rxb3 {[%clk 0:00:02]} 48. Rxe2 {[%clk 0:00:07]}  Kxc4 {[%clk 0:00:02]} 49. f6 {[%clk 0:00:08]}  Rg3+ {[%clk 0:00:03]} 50. Kxh5 {[%clk 0:00:08]}  Rf3 {[%clk 0:00:04]} 51. Kg5 {[%clk 0:00:08]}  Kd5 {[%clk 0:00:03]} 52. h5 {[%clk 0:00:08]}  Rg3+ {[%clk 0:00:03]} 53. Kf4 {[%clk 0:00:08]}  Rg1 {[%clk 0:00:03]} 54. h6 {[%clk 0:00:06]}  Rf1+ {[%clk 0:00:04]} 55. Kg5 {[%clk 0:00:06]}  Rg1+ {[%clk 0:00:05]} 56. Kf5 {[%clk 0:00:07]}  Rf1+ {[%clk 0:00:05]} 57. Kg6 {[%clk 0:00:07]}  Rg1+ {[%clk 0:00:06]} 58. Kf7 {[%clk 0:00:07]}  Rh1 {[%clk 0:00:07]} 59. Kg7 {[%clk 0:00:07]}  Rg1+ {[%clk 0:00:07]} 60. Kh8 {[%clk 0:00:07]}  Rf1 {[%clk 0:00:08]} 61. h7 {[%clk 0:00:08]}  Kd6 {[%clk 0:00:05]} 62. Kg7 {[%clk 0:00:06]}  Rg1+ {[%clk 0:00:05]} 63. Kf7 {[%clk 0:00:06]}  Rh1 {[%clk 0:00:05]} 64. Kg6 {[%clk 0:00:06]}  Rg1+ {[%clk 0:00:06]} 65. Kf7 {[%clk 0:00:05]}  Rh1 {[%clk 0:00:06]} 66. Kg8 {[%clk 0:00:06]}  Rg1+ {[%clk 0:00:07]} 67. Kh8 {[%clk 0:00:05]}  Rf1 {[%clk 0:00:05]} 68. f7 {[%clk 0:00:05]}  Kd7 {[%clk 0:00:02]} 69. Kg7 {[%clk 0:00:04]}  Rg1+ {[%clk 0:00:03]} 70. Kf8 {[%clk 0:00:05]}  Rh1 {[%clk 0:00:03]} 71. Rd2+ {[%clk 0:00:05]}  Kc7 {[%clk 0:00:02]} 72. Ke7 {[%clk 0:00:04]}  Re1+ {[%clk 0:00:03]} 73. Kf6 {[%clk 0:00:05]}  Rf1+ {[%clk 0:00:04]} 74. Kg6 {[%clk 0:00:05]}  Rg1+ {[%clk 0:00:04]} 75. Kf5 {[%clk 0:00:05]}  Rh1 {[%clk 0:00:05]} 76. Ke4 {[%clk 0:00:05]}  Rh4+ {[%clk 0:00:03]} 77. Kf3 {[%clk 0:00:05]}  Rh1 {[%clk 0:00:02]} 78. Kg2 {[%clk 0:00:04]}  Rxh7 {[%clk 0:00:03]} 79. f8=Q {[%clk 0:00:04]}  Kb6 {[%clk 0:00:04]} 80. Rb2+ {[%clk 0:00:04]} 1-0


[Site "https://www.chess.com"]

[Event "Titled Tuesday Blitz September 20 Late 2022"]
[White "Riehle, Marco"]
[Black "Zhigalko, Sergei"]
[WhiteFideId "12904392"]
[BlackFideId "13502956"]
[WhiteElo "2462"]
[BlackElo "2662"]
[Result "0-1"]
[Round "03"]
[TimeControl "180+1"]
[Date "2022.09.20"]
[WhiteClock "0:00:28"]
[BlackClock "0:00:05"]

1. e4 {[%clk 0:03:00]}  c5 {[%clk 0:02:59]} 2. a3 {[%clk 0:03:00]}  Nf6 {[%clk 0:02:56]} 3. e5 {[%clk 0:03:00]}  Nd5 {[%clk 0:02:57]} 4. c4 {[%clk 0:03:00]}  Nc7 {[%clk 0:02:52]} 5. b4 {[%clk 0:03:00]}  d6 {[%clk 0:02:50]} 6. exd6 {[%clk 0:03:01]}  exd6 {[%clk 0:02:51]} 7. Bb2 {[%clk 0:03:00]}  Nc6 {[%clk 0:02:48]} 8. Nf3 {[%clk 0:02:59]}  Bg4 {[%clk 0:02:45]} 9. Be2 {[%clk 0:02:58]}  Ne6 {[%clk 0:02:45]} 10. b5 {[%clk 0:02:56]}  Na5 {[%clk 0:02:39]} 11. d3 {[%clk 0:02:52]}  Be7 {[%clk 0:02:30]} 12. O-O {[%clk 0:02:50]}  Nf4 {[%clk 0:02:20]} 13. h3 {[%clk 0:02:39]}  Bh5 {[%clk 0:02:16]} 14. Nbd2 {[%clk 0:02:37]}  O-O {[%clk 0:02:09]} 15. Ne4 {[%clk 0:02:37]}  d5 {[%clk 0:02:02]} 16. Ng3 {[%clk 0:02:33]}  Bg6 {[%clk 0:01:43]} 17. Rc1 {[%clk 0:02:06]}  dxc4 {[%clk 0:01:24]} 18. dxc4 {[%clk 0:02:07]}  Nxe2+ {[%clk 0:01:22]} 19. Nxe2 {[%clk 0:02:04]}  Bd3 {[%clk 0:01:21]} 20. Ne5 {[%clk 0:01:58]}  Bxe2 {[%clk 0:01:12]} 21. Qxe2 {[%clk 0:01:59]}  Bf6 {[%clk 0:01:12]} 22. Nf3 {[%clk 0:01:49]}  Re8 {[%clk 0:01:09]} 23. Bxf6 {[%clk 0:01:48]}  Rxe2 {[%clk 0:01:00]} 24. Bxd8 {[%clk 0:01:48]}  Rxd8 {[%clk 0:01:01]} 25. Rfd1 {[%clk 0:01:47]}  Rxd1+ {[%clk 0:00:53]} 26. Rxd1 {[%clk 0:01:47]}  g6 {[%clk 0:00:43]} 27. Rd7 {[%clk 0:01:34]}  h6 {[%clk 0:00:40]} 28. Rc7 {[%clk 0:01:31]}  b6 {[%clk 0:00:39]} 29. Rxa7 {[%clk 0:01:29]}  Nxc4 {[%clk 0:00:39]} 30. a4 {[%clk 0:01:27]}  Ra2 {[%clk 0:00:36]} 31. g3 {[%clk 0:01:21]}  Kg7 {[%clk 0:00:31]} 32. h4 {[%clk 0:01:18]}  Kf6 {[%clk 0:00:30]} 33. g4 {[%clk 0:01:13]}  g5 {[%clk 0:00:28]} 34. h5 {[%clk 0:01:12]}  Nb2 {[%clk 0:00:26]} 35. a5 {[%clk 0:01:08]}  bxa5 {[%clk 0:00:25]} 36. b6 {[%clk 0:01:09]}  Nc4 {[%clk 0:00:25]} 37. Rc7 {[%clk 0:01:03]}  Rb2 {[%clk 0:00:08]} 38. Rxc5 {[%clk 0:01:03]}  Rb4 {[%clk 0:00:07]} 39. Rc6+ {[%clk 0:00:52]}  Kg7 {[%clk 0:00:07]} 40. Nd4 {[%clk 0:00:52]}  Ne5 {[%clk 0:00:06]} 41. Nf5+ {[%clk 0:00:52]}  Kh7 {[%clk 0:00:05]} 42. Rxh6+ {[%clk 0:00:45]}  Kg8 {[%clk 0:00:05]} 43. Rd6 {[%clk 0:00:45]}  a4 {[%clk 0:00:05]} 44. Rd4 {[%clk 0:00:27]}  Nf3+ {[%clk 0:00:04]} 45. Kg2 {[%clk 0:00:27]}  Nxd4 {[%clk 0:00:05]} 46. Nxd4 {[%clk 0:00:28]}  Rxd4 {[%clk 0:00:05]} 0-1


[Site "https://www.chess.com"]

[Event "Titled Tuesday Blitz September 20 Late 2022"]
[White "Rosen, Eric"]
[Black "Hansen, Eric"]
[WhiteFideId "2032562"]
[BlackFideId "2606771"]
[WhiteElo "2362"]
[BlackElo "2568"]
[Result "1-0"]
[Round "03"]
[TimeControl "180+1"]
[Date "2022.09.20"]
[WhiteClock "0:00:02"]
[BlackClock "0:00:01"]

1. d4 {[%clk 0:02:53]}  d5 {[%clk 0:02:52]} 2. Bf4 {[%clk 0:02:53]}  Nf6 {[%clk 0:02:49]} 3. e3 {[%clk 0:02:53]}  c5 {[%clk 0:02:49]} 4. Nf3 {[%clk 0:02:54]}  Bg4 {[%clk 0:02:47]} 5. Nbd2 {[%clk 0:02:48]}  cxd4 {[%clk 0:02:45]} 6. exd4 {[%clk 0:02:47]}  Nc6 {[%clk 0:02:45]} 7. c3 {[%clk 0:02:47]}  e6 {[%clk 0:02:17]} 8. Be2 {[%clk 0:02:47]}  Bd6 {[%clk 0:02:06]} 9. Bxd6 {[%clk 0:02:48]}  Qxd6 {[%clk 0:02:06]} 10. O-O {[%clk 0:02:48]}  O-O {[%clk 0:02:06]} 11. Re1 {[%clk 0:02:46]}  Rab8 {[%clk 0:02:03]} 12. a4 {[%clk 0:02:46]}  Bf5 {[%clk 0:02:01]} 13. a5 {[%clk 0:02:46]}  h6 {[%clk 0:02:00]} 14. Nb3 {[%clk 0:02:31]}  Qc7 {[%clk 0:01:46]} 15. Bd3 {[%clk 0:02:26]}  Ne4 {[%clk 0:01:43]} 16. Qe2 {[%clk 0:02:13]}  b6 {[%clk 0:01:40]} 17. axb6 {[%clk 0:02:12]}  Rxb6 {[%clk 0:01:27]} 18. Nc5 {[%clk 0:01:56]}  Nd6 {[%clk 0:00:58]} 19. b4 {[%clk 0:01:53]}  Bxd3 {[%clk 0:00:54]} 20. Qxd3 {[%clk 0:01:53]}  Qc8 {[%clk 0:00:47]} 21. Ra2 {[%clk 0:01:48]}  Re8 {[%clk 0:00:43]} 22. h3 {[%clk 0:01:47]}  Re7 {[%clk 0:00:44]} 23. Nd2 {[%clk 0:01:37]}  e5 {[%clk 0:00:41]} 24. dxe5 {[%clk 0:01:32]}  Nxe5 {[%clk 0:00:41]} 25. Qxd5 {[%clk 0:01:32]}  Qe8 {[%clk 0:00:38]} 26. Raa1 {[%clk 0:01:28]}  Nb5 {[%clk 0:00:35]} 27. Re3 {[%clk 0:01:10]}  Rd6 {[%clk 0:00:34]} 28. Qa2 {[%clk 0:01:11]}  Qd8 {[%clk 0:00:33]} 29. Nde4 {[%clk 0:01:06]}  Rd1+ {[%clk 0:00:32]} 30. Rxd1 {[%clk 0:01:06]}  Qxd1+ {[%clk 0:00:33]} 31. Kh2 {[%clk 0:01:07]}  Qh5 {[%clk 0:00:31]} 32. Qe2 {[%clk 0:00:48]}  Qxe2 {[%clk 0:00:26]} 33. Rxe2 {[%clk 0:00:49]}  f5 {[%clk 0:00:22]} 34. Ng3 {[%clk 0:00:49]}  f4 {[%clk 0:00:18]} 35. Nge4 {[%clk 0:00:42]}  f3 {[%clk 0:00:18]} 36. gxf3 {[%clk 0:00:39]}  Nxf3+ {[%clk 0:00:16]} 37. Kg3 {[%clk 0:00:39]}  Ne5 {[%clk 0:00:09]} 38. f4 {[%clk 0:00:40]}  Nc6 {[%clk 0:00:09]} 39. Kf3 {[%clk 0:00:36]}  a5 {[%clk 0:00:06]} 40. bxa5 {[%clk 0:00:29]}  Nxa5 {[%clk 0:00:06]} 41. Rb2 {[%clk 0:00:29]}  Na3 {[%clk 0:00:03]} 42. Rb8+ {[%clk 0:00:26]}  Kh7 {[%clk 0:00:03]} 43. h4 {[%clk 0:00:19]}  N3c4 {[%clk 0:00:03]} 44. h5 {[%clk 0:00:18]}  Nc6 {[%clk 0:00:03]} 45. Rc8 {[%clk 0:00:18]}  Rf7 {[%clk 0:00:03]} 46. Ne6 {[%clk 0:00:07]}  Ne7 {[%clk 0:00:01]} 47. Rxc4 {[%clk 0:00:04]}  Nf5 {[%clk 0:00:01]} 48. Rc8 {[%clk 0:00:02]} 1-0


[Site "https://www.chess.com"]

[Event "Titled Tuesday Blitz September 20 Late 2022"]
[White "Sjugirov, Sanan"]
[Black "Dimitrov, Atanas"]
[WhiteFideId "4189302"]
[BlackFideId "2901315"]
[WhiteElo "2609"]
[BlackElo "2684"]
[Result "1-0"]
[Round "03"]
[TimeControl "180+1"]
[Date "2022.09.20"]
[WhiteClock "0:00:07"]
[BlackClock "0:00:04"]

1. e4 {[%clk 0:03:00]}  c5 {[%clk 0:02:59]} 2. Nf3 {[%clk 0:03:00]}  d6 {[%clk 0:03:00]} 3. d4 {[%clk 0:02:59]}  cxd4 {[%clk 0:03:00]} 4. Nxd4 {[%clk 0:03:00]}  Nf6 {[%clk 0:03:00]} 5. Nc3 {[%clk 0:03:00]}  g6 {[%clk 0:03:00]} 6. Be3 {[%clk 0:02:59]}  Bg7 {[%clk 0:03:00]} 7. f3 {[%clk 0:03:00]}  Nc6 {[%clk 0:03:01]} 8. Qd2 {[%clk 0:03:00]}  Bd7 {[%clk 0:03:01]} 9. Nxc6 {[%clk 0:02:48]}  Bxc6 {[%clk 0:02:54]} 10. Bc4 {[%clk 0:02:47]}  a6 {[%clk 0:02:51]} 11. Bb3 {[%clk 0:02:47]}  Rc8 {[%clk 0:02:44]} 12. O-O-O {[%clk 0:02:41]}  O-O {[%clk 0:02:43]} 13. h4 {[%clk 0:02:32]}  h5 {[%clk 0:02:43]} 14. Bh6 {[%clk 0:02:31]}  b5 {[%clk 0:02:32]} 15. Qg5 {[%clk 0:02:25]}  e6 {[%clk 0:01:54]} 16. Bxg7 {[%clk 0:02:20]}  Kxg7 {[%clk 0:01:53]} 17. e5 {[%clk 0:02:14]}  Nd5 {[%clk 0:01:21]} 18. Bxd5 {[%clk 0:01:47]}  exd5 {[%clk 0:01:17]} 19. exd6 {[%clk 0:01:35]}  Qxd6 {[%clk 0:01:11]} 20. Nxd5 {[%clk 0:01:18]}  Bxd5 {[%clk 0:01:09]} 21. Qxd5 {[%clk 0:01:19]}  Qxd5 {[%clk 0:01:04]} 22. Rxd5 {[%clk 0:01:18]}  Rc6 {[%clk 0:01:05]} 23. Rhd1 {[%clk 0:01:07]}  Re8 {[%clk 0:00:59]} 24. b3 {[%clk 0:00:55]}  Re2 {[%clk 0:00:55]} 25. R1d2 {[%clk 0:00:56]}  Re1+ {[%clk 0:00:54]} 26. Kb2 {[%clk 0:00:56]}  Rh1 {[%clk 0:00:55]} 27. R5d4 {[%clk 0:00:52]}  Re6 {[%clk 0:00:49]} 28. a4 {[%clk 0:00:51]}  Re5 {[%clk 0:00:41]} 29. axb5 {[%clk 0:00:51]}  axb5 {[%clk 0:00:42]} 30. Kc3 {[%clk 0:00:50]}  Rf5 {[%clk 0:00:21]} 31. Kb4 {[%clk 0:00:49]}  Rc1 {[%clk 0:00:15]} 32. c3 {[%clk 0:00:44]}  Re5 {[%clk 0:00:15]} 33. Re4 {[%clk 0:00:40]}  Rf5 {[%clk 0:00:14]} 34. Red4 {[%clk 0:00:34]}  Re5 {[%clk 0:00:14]} 35. Rd5 {[%clk 0:00:34]}  Re3 {[%clk 0:00:13]} 36. R2d3 {[%clk 0:00:34]}  Re2 {[%clk 0:00:12]} 37. g4 {[%clk 0:00:20]}  hxg4 {[%clk 0:00:10]} 38. fxg4 {[%clk 0:00:20]}  Re4+ {[%clk 0:00:10]} 39. R5d4 {[%clk 0:00:20]}  Re5 {[%clk 0:00:09]} 40. g5 {[%clk 0:00:19]}  Rh1 {[%clk 0:00:07]} 41. Rf4 {[%clk 0:00:18]}  Re7 {[%clk 0:00:04]} 42. Rdf3 {[%clk 0:00:09]}  Rb1 {[%clk 0:00:03]} 43. Rd4 {[%clk 0:00:07]}  Rb2 {[%clk 0:00:03]} 44. Rfd3 {[%clk 0:00:07]}  Ra7 {[%clk 0:00:02]} 45. Re4 {[%clk 0:00:05]}  Rc7 {[%clk 0:00:02]} 46. Re8 {[%clk 0:00:04]}  f6 {[%clk 0:00:01]} 47. gxf6+ {[%clk 0:00:04]}  Kxf6 {[%clk 0:00:02]} 48. Rf8+ {[%clk 0:00:04]}  Kg7 {[%clk 0:00:02]} 49. Rf4 {[%clk 0:00:04]}  Re2 {[%clk 0:00:02]} 50. Kxb5 {[%clk 0:00:04]}  Re5+ {[%clk 0:00:03]} 51. Kb6 {[%clk 0:00:04]}  Rce7 {[%clk 0:00:03]} 52. Rfd4 {[%clk 0:00:04]}  R5e6+ {[%clk 0:00:02]} 53. Rd6 {[%clk 0:00:05]}  Rxd6+ {[%clk 0:00:02]} 54. Rxd6 {[%clk 0:00:04]}  Re3 {[%clk 0:00:03]} 55. Rc6 {[%clk 0:00:05]}  Re4 {[%clk 0:00:03]} 56. b4 {[%clk 0:00:05]}  Rxh4 {[%clk 0:00:03]} 57. b5 {[%clk 0:00:06]}  g5 {[%clk 0:00:04]} 58. Rc7+ {[%clk 0:00:06]}  Kf6 {[%clk 0:00:04]} 59. Rc8 {[%clk 0:00:07]}  g4 {[%clk 0:00:03]} 60. Rg8 {[%clk 0:00:07]}  Kf5 {[%clk 0:00:02]} 61. c4 {[%clk 0:00:07]}  Rh6+ {[%clk 0:00:03]} 62. Kc5 {[%clk 0:00:05]}  Rg6 {[%clk 0:00:01]} 63. Rxg6 {[%clk 0:00:05]}  Kxg6 {[%clk 0:00:02]} 64. Kd4 {[%clk 0:00:06]}  g3 {[%clk 0:00:03]} 65. Ke3 {[%clk 0:00:06]}  Kg5 {[%clk 0:00:03]} 66. Kf3 {[%clk 0:00:06]}  Kh4 {[%clk 0:00:04]} 67. Kg2 {[%clk 0:00:07]} 1-0


[Site "https://www.chess.com"]

[Event "Titled Tuesday Blitz September 20 Late 2022"]
[White "Tari, Aryan"]
[Black "Aldokhin, Ivan"]
[WhiteFideId "1510045"]
[BlackFideId "24115720"]
[WhiteElo "2612"]
[BlackElo "2243"]
[Result "1-0"]
[Round "03"]
[TimeControl "180+1"]
[Date "2022.09.20"]
[WhiteClock "0:00:30"]
[BlackClock "0:00:06"]

1. c4 {[%clk 0:03:00]}  Nf6 {[%clk 0:02:40]} 2. Nc3 {[%clk 0:02:54]}  g6 {[%clk 0:02:40]} 3. g3 {[%clk 0:02:53]}  d6 {[%clk 0:02:40]} 4. Bg2 {[%clk 0:02:50]}  Bg7 {[%clk 0:02:41]} 5. d4 {[%clk 0:02:50]}  O-O {[%clk 0:02:40]} 6. Nf3 {[%clk 0:02:51]}  Nc6 {[%clk 0:02:35]} 7. O-O {[%clk 0:02:50]}  Bf5 {[%clk 0:02:35]} 8. Be3 {[%clk 0:02:44]}  Ne4 {[%clk 0:02:33]} 9. Nxe4 {[%clk 0:02:28]}  Bxe4 {[%clk 0:02:32]} 10. d5 {[%clk 0:02:17]}  Na5 {[%clk 0:01:26]} 11. b3 {[%clk 0:02:11]}  Bxa1 {[%clk 0:01:13]} 12. Qxa1 {[%clk 0:02:12]}  f6 {[%clk 0:01:12]} 13. Bh3 {[%clk 0:02:12]}  Bxf3 {[%clk 0:01:04]} 14. exf3 {[%clk 0:02:11]}  c5 {[%clk 0:01:03]} 15. Be6+ {[%clk 0:02:05]}  Kg7 {[%clk 0:01:00]} 16. h4 {[%clk 0:01:54]}  h5 {[%clk 0:00:56]} 17. f4 {[%clk 0:01:44]}  b5 {[%clk 0:00:47]} 18. cxb5 {[%clk 0:01:44]}  a6 {[%clk 0:00:41]} 19. b6 {[%clk 0:01:37]}  Qxb6 {[%clk 0:00:39]} 20. f5 {[%clk 0:01:38]}  Qb4 {[%clk 0:00:34]} 21. Qc1 {[%clk 0:01:30]}  Rh8 {[%clk 0:00:26]} 22. Bd2 {[%clk 0:01:25]}  Qb5 {[%clk 0:00:21]} 23. Bc3 {[%clk 0:01:25]}  Nb7 {[%clk 0:00:14]} 24. Qg5 {[%clk 0:01:24]}  Qe8 {[%clk 0:00:11]} 25. Re1 {[%clk 0:01:04]}  Nd8 {[%clk 0:00:11]} 26. Qf4 {[%clk 0:00:53]}  Ra7 {[%clk 0:00:07]} 27. fxg6 {[%clk 0:00:49]}  Nxe6 {[%clk 0:00:06]} 28. Rxe6 {[%clk 0:00:49]}  Qxg6 {[%clk 0:00:07]} 29. Qe3 {[%clk 0:00:48]}  Kf7 {[%clk 0:00:06]} 30. Kg2 {[%clk 0:00:47]}  Rg8 {[%clk 0:00:06]} 31. Kh2 {[%clk 0:00:47]}  Qf5 {[%clk 0:00:06]} 32. Qd2 {[%clk 0:00:35]}  Rg4 {[%clk 0:00:06]} 33. Re3 {[%clk 0:00:29]}  Re4 {[%clk 0:00:06]} 34. Qc2 {[%clk 0:00:30]} 1-0


[Site "https://www.chess.com"]